[Event "CZE-tht Extraliga 2018-19"]
[Site "Czech Republic"]
[Date "2019.04.20"]
[Round "10.1"]
[White "Sadzikowski, Daniel"]
[Black "Zhigalko, Andrey"]
[Result "0-1"]
[ECO "C50"]
[WhiteElo "2523"]
[BlackElo "2546"]
[Annotator "ChessBase"]
[PlyCount "78"]
[EventDate "2018.11.03"]
[EventType "team-tourn"]
[EventCountry "CZE"]
[SourceTitle "playchess.com"]
[Source "ChessBase"]
[SourceQuality "1"]
[WhiteTeam "Duras"]
[BlackTeam "Beskydska"]
[TimeControl "40/5400+30:1800+30"]

1. e4 {[%emt 0:00:00]} e5 {[%emt 0:00:00]} 2. Nf3 {[%emt 0:00:00]} Nc6 {[%emt 0:00:00]} 3. Bc4 {[%emt 0:00:00]} Bc5 {[%emt 0:00:00]} 4. O-O {[%emt 0:00:18]} Nf6 {[%emt 0:00:00]} 5. d3 {[%emt 0:00:06]} d6 {[%emt 0:00:13]} 6. c3 {[%emt 0:00:04]} a6 {[%emt 0:01:06]} 7. a4 {[%emt 0:00:12]} h6 {[%emt 0:04:23]} 8. Nbd2 {[%emt 0:03:38]} O-O {[%emt 0:02:25]} 9. Re1 {[%emt 0:01:21]} Ne7 {[%emt 0:08:10]} 10. Nf1 {[%emt 0:02:43]} Ng6 {[%emt 0:04:02]} 11. Bb3 {[%emt 0:01:13]} c6 {[%emt 0:13:55]} 12. h3 {[%emt 0:16:35]} Ba7 {[%emt 0:15:20]} 13. d4 {[%emt 0:08:25]} d5 {[%emt 0:23:35]} 14. exd5 {[%emt 0:04:56]} e4 {[%emt 0:00:06]} 15. Ne5 {[%emt 0:00:26]} cxd5 {[%emt 0:00:24]} 16. Ng3 {[%emt 0:22:20]} Be6 {[%emt 0:04:17]} 17. Nxg6 {[%emt 0:11:10]} fxg6 {[%emt 0:00:02]} 18. Bf4 {[%emt 0:00:39]} Qd7 {[%emt 0:07:34]} 19. Be5 {[%emt 0:04:36]} Nh7 {[%emt 0:01:25]} 20. Qe2 {[%emt 0:04:42]} Rae8 {[%emt 0:04:29]} 21. Kh2 {[%emt 0:02:40]} Ng5 {[%emt 0:01:36]} 22. a5 {[%emt 0:02:53]} Re7 {[%emt 0:02:00]} 23. h4 {[%emt 0:03:44]} Nf7 {[%emt 0:01:29]} 24. Bf4 {[%emt 0:00:15]} Nd6 {[%emt 0:01:01]} 25. Be5 {[%emt 0:01:16]} Nf7 {[%emt 0:00:42]} 26. Bf4 {[%emt 0:00:01]} g5 {[%emt 0:02:18]} 27. hxg5 {[%emt 0:00:05]} Nxg5 {[%emt 0:00:20]} 28. Bxg5 {[%emt 0:01:02]} hxg5 {[%emt 0:00:01]} 29. Rh1 {[%emt 0:00:13]} Bb8 {[%emt 0:01:45]} 30. Kg1 {[%emt 0:00:43]} g6 {[%emt 0:00:42]} 31. Nf1 {[%emt 0:01:44]} Ref7 {[%emt 0:01:08]} 32. Qd2 {[%emt 0:01:30]} Rxf2 {[%emt 0:00:44]} 33. Qxg5 {[%emt 0:00:12]} Qf7 {[%emt 0:00:38]} 34. Ne3 {[%emt 0:01:03]} Rxb2 {[%emt 0:00:13]} 35. Rf1 {[%emt 0:03:11]} Rb1 {[%emt 0:00:40]} 36. Rh8+ {[%emt 0:00:23]} Kxh8 {[%emt 0:00:04]} 37. Rxb1 {[%emt 0:00:55]} Qf2+ {[%emt 0:01:01]} 38. Kh1 {[%emt 0:00:01]} Kg7 {[%emt 0:00:31]} 39. Qe7+ {[%emt 0:01:46]} Bf7 {[%emt 0:00:19]} 0-1

[Event "CZE-tht Extraliga 2018-19"]
[Site "Czech Republic"]
[Date "2019.04.20"]
[Round "10.2"]
[White "Azarov, Sergei"]
[Black "Shengelia, David"]
[Result "1-0"]
[ECO "C60"]
[WhiteElo "2595"]
[BlackElo "2530"]
[Annotator "ChessBase"]
[PlyCount "53"]
[EventDate "2018.11.03"]
[EventType "team-tourn"]
[EventCountry "CZE"]
[SourceTitle "playchess.com"]
[Source "ChessBase"]
[SourceQuality "1"]
[WhiteTeam "Beskydska"]
[BlackTeam "Duras"]
[TimeControl "40/5400+30:1800+30"]

1. e4 {[%emt 0:00:00]} e5 {[%emt 0:00:00]} 2. Nf3 {[%emt 0:00:00]} Nc6 {[%emt 0:00:00]} 3. Bb5 {[%emt 0:00:27]} g6 {[%emt 0:00:54]} 4. c3 {[%emt 0:05:05]} a6 {[%emt 0:01:06]} 5. Ba4 {[%emt 0:01:40]} Bg7 {[%emt 0:00:12]} 6. O-O {[%emt 0:01:05]} d6 {[%emt 0:03:27]} 7. d4 {[%emt 0:05:37]} b5 {[%emt 0:01:03]} 8. Bc2 {[%emt 0:07:46]} exd4 {[%emt 0:02:44]} 9. Nxd4 {[%emt 0:03:18]} Nge7 {[%emt 0:05:26]} 10. Bg5 {[%emt 0:01:57]} Bb7 {[%emt 0:20:49]} 11. Nxc6 {[%emt 0:01:48]} Bxc6 {[%emt 0:00:10]} 12. Nd2 {[%emt 0:01:39]} O-O {[%emt 0:03:28]} 13. Nb3 {[%emt 0:03:08]} Re8 {[%emt 0:02:18]} 14. Qd2 {[%emt 0:07:00]} Qb8 {[%emt 0:13:24]} 15. Rfe1 {[%emt 0:02:05]} Nc8 {[%emt 0:13:45]} 16. Nd4 {[%emt 0:04:30]} Bd7 {[%emt 0:02:28]} 17. Nf5 {[%emt 0:01:33]} gxf5 {[%emt 0:07:20]} 18. exf5 {[%emt 0:00:19]} f6 {[%emt 0:00:17]} 19. Qd5+ {[%emt 0:10:09]} Kh8 {[%emt 0:00:05]} 20. Bxf6 {[%emt 0:00:38]} Bxf6 {[%emt 0:11:23]} 21. Qf7 {[%emt 0:01:30]} Nb6 {[%emt 0:00:06]} 22. Qxf6+ {[%emt 0:05:14]} Kg8 {[%emt 0:00:01]} 23. Qh4 {[%emt 0:01:53]} h6 {[%emt 0:09:43]} 24. f6 {[%emt 0:02:12]} Rxe1+ {[%emt 0:01:02]} 25. Rxe1 {[%emt 0:00:05]} Qf8 {[%emt 0:00:03]} 26. Qg3+ {[%emt 0:00:34]} Kh8 {[%emt 0:00:06]} 27. Qg6 {[%emt 0:00:42]} 1-0

[Event "CZE-tht Extraliga 2018-19"]
[Site "Czech Republic"]
[Date "2019.04.20"]
[Round "10.2"]
[White "Straka, Vojtech"]
[Black "Heberla, Bartlomiej"]
[Result "1/2-1/2"]
[ECO "A41"]
[WhiteElo "2366"]
[BlackElo "2553"]
[Annotator "ChessBase"]
[PlyCount "144"]
[EventDate "2018.11.03"]
[EventType "team-tourn"]
[EventCountry "CZE"]
[SourceTitle "playchess.com"]
[Source "ChessBase"]
[SourceQuality "1"]
[WhiteTeam "Cesky Tesin"]
[BlackTeam "Brno"]
[TimeControl "40/5400+30:1800+30"]

1. d4 {[%emt 0:00:00]} d6 {[%emt 0:00:00]} 2. Nf3 {[%emt 0:00:00]} Nf6 {[%emt 0:00:00]} 3. c4 {[%emt 0:00:09]} Nbd7 {[%emt 0:00:00]} 4. Nc3 {[%emt 0:00:20]} e5 {[%emt 0:00:00]} 5. Bg5 {[%emt 0:00:36]} h6 {[%emt 0:03:29]} 6. Bh4 {[%emt 0:01:19]} Be7 {[%emt 0:00:08]} 7. e3 {[%emt 0:00:21]} O-O {[%emt 0:00:07]} 8. Be2 {[%emt 0:02:41]} c6 {[%emt 0:08:50]} 9. Qc2 {[%emt 0:02:16]} Nh5 {[%emt 0:05:16]} 10. Bxe7 {[%emt 0:03:28]} Qxe7 {[%emt 0:01:46]} 11. O-O-O {[%emt 0:22:29]} Nhf6 {[%emt 0:00:13]} 12. Rhg1 {[%emt 0:00:29]} Nb6 {[%emt 0:29:13]} 13. h3 {[%emt 0:19:26]} e4 {[%emt 0:00:46]} 14. Nd2 {[%emt 0:02:27]} d5 {[%emt 0:02:00]} 15. g4 {[%emt 0:02:01]} Nh7 {[%emt 0:00:18]} 16. Kb1 {[%emt 0:03:19]} Kh8 {[%emt 0:03:38]} 17. Rg3 {[%emt 0:07:48]} f5 {[%emt 0:03:41]} 18. c5 {[%emt 0:04:52]} Nd7 {[%emt 0:04:07]} 19. gxf5 {[%emt 0:00:25]} Ndf6 {[%emt 0:11:08]} 20. f4 {[%emt 0:03:21]} Bxf5 {[%emt 0:03:24]} 21. Rdg1 {[%emt 0:00:17]} g5 {[%emt 0:07:22]} 22. fxg5 {[%emt 0:03:14]} Nxg5 {[%emt 0:00:04]} 23. Nd1 {[%emt 0:05:18]} Rg8 {[%emt 0:05:25]} 24. Nf2 {[%emt 0:04:56]} Qh7 {[%emt 0:01:25]} 25. Qd1 {[%emt 0:03:18]} Ne6 {[%emt 0:00:47]} 26. Nf1 {[%emt 0:00:40]} h5 {[%emt 0:04:15]} 27. h4 {[%emt 0:03:13]} Rxg3 {[%emt 0:01:19]} 28. Rxg3 {[%emt 0:00:44]} Rg8 {[%emt 0:00:19]} 29. Ka1 {[%emt 0:01:25]} Rg6 {[%emt 0:00:21]} 30. Qe1 {[%emt 0:00:25]} Qg7 {[%emt 0:00:35]} 31. Nh1 {[%emt 0:00:16]} Bg4 {[%emt 0:01:22]} 32. a3 {[%emt 0:00:47]} Qe7 {[%emt 0:01:52]} 33. Nh2 {[%emt 0:00:32]} Ng7 {[%emt 0:00:17]} 34. Qf2 {[%emt 0:00:43]} Qe6 {[%emt 0:01:13]} 35. Rg1 {[%emt 0:00:38]} Qf5 {[%emt 0:01:03]} 36. Qg3 {[%emt 0:00:45]} Kh7 {[%emt 0:00:01]} 37. Rf1 {[%emt 0:00:52]} Bxe2 {[%emt 0:01:42]} 38. Rxf5 {[%emt 0:00:09]} Rxg3 {[%emt 0:00:22]} 39. Nxg3 {[%emt 0:00:08]} Nxf5 {[%emt 0:00:07]} 40. Nxf5 {[%emt 0:00:15]} Kg6 {[%emt 0:00:26]} 41. Ng3 {[%emt 0:03:26]} Bg4 {[%emt 0:12:11]} 42. Kb1 {[%emt 0:01:40]} Ng8 {[%emt 0:05:29]} 43. Kc2 {[%emt 0:02:08]} Ne7 {[%emt 0:00:20]} 44. Kd2 {[%emt 0:03:55]} Kh6 {[%emt 0:08:08]} 45. Nxg4+ {[%emt 0:08:34]} hxg4 {[%emt 0:00:02]} 46. Ke2 {[%emt 0:00:39]} Ng6 {[%emt 0:00:04]} 47. h5 {[%emt 0:01:15]} Nf8 {[%emt 0:04:24]} 48. b4 {[%emt 0:02:21]} Ne6 {[%emt 0:00:12]} 49. Nf5+ {[%emt 0:05:59]} Kxh5 {[%emt 0:00:02]} 50. Kf2 {[%emt 0:00:11]} Kg5 {[%emt 0:01:37]} 51. Nd6 {[%emt 0:00:09]} Kh4 {[%emt 0:00:40]} 52. Kg2 {[%emt 0:00:06]} Ng7 {[%emt 0:01:42]} 53. Nxb7 {[%emt 0:04:23]} Nf5 {[%emt 0:00:05]} 54. Nd6 {[%emt 0:01:10]} Nxe3+ {[%emt 0:00:17]} 55. Kg1 {[%emt 0:00:05]} a6 {[%emt 0:01:37]} 56. a4 {[%emt 0:00:30]} Nc4 {[%emt 0:01:04]} 57. b5 {[%emt 0:00:35]} axb5 {[%emt 0:00:04]} 58. axb5 {[%emt 0:00:05]} Na5 {[%emt 0:01:16]} 59. Kg2 {[%emt 0:04:02]} cxb5 {[%emt 0:00:16]} 60. Nxb5 {[%emt 0:00:01]} Nc6 {[%emt 0:00:46]} 61. Nc7 {[%emt 0:01:15]} Nb4 {[%emt 0:00:59]} 62. Ne6 {[%emt 0:00:16]} g3 {[%emt 0:00:21]} 63. Nf4 {[%emt 0:01:07]} Kg4 {[%emt 0:00:42]} 64. Ne2 {[%emt 0:00:01]} Nc6 {[%emt 0:00:19]} 65. Nc3 {[%emt 0:00:04]} e3 {[%emt 0:00:40]} 66. Ne2 {[%emt 0:02:00]} Nd8 {[%emt 0:00:47]} 67. Nxg3 {[%emt 0:00:08]} Kf4 {[%emt 0:00:02]} 68. Nh5+ {[%emt 0:00:52]} Ke4 {[%emt 0:00:11]} 69. Nf6+ {[%emt 0:00:04]} Kxd4 {[%emt 0:00:45]} 70. Kf3 {[%emt 0:00:01]} Kd3 {[%emt 0:00:56]} 71. Nxd5 {[%emt 0:00:02]} Ne6 {[%emt 0:00:07]} 72. Nxe3 {[%emt 0:00:06]} Nxc5 {[%emt 0:00:04] Ke4+} 1/2-1/2

[Event "CZE-tht Extraliga 2018-19"]
[Site "Czech Republic"]
[Date "2019.04.20"]
[Round "10.2"]
[White "Jurcik, Martin"]
[Black "Kociscak, Jiri"]
[Result "1/2-1/2"]
[ECO "C67"]
[WhiteElo "2335"]
[BlackElo "2496"]
[Annotator "ChessBase"]
[PlyCount "106"]
[EventDate "2018.11.03"]
[EventType "team-tourn"]
[EventCountry "CZE"]
[SourceTitle "playchess.com"]
[Source "ChessBase"]
[SourceQuality "1"]
[WhiteTeam "Siesta B"]
[BlackTeam "Ostrava"]
[TimeControl "40/5400+30:1800+30"]

1. e4 {[%emt 0:00:00]} e5 {[%emt 0:01:04]} 2. Nf3 {[%emt 0:00:04]} Nc6 {[%emt 0:00:06]} 3. Bb5 {[%emt 0:00:45]} Nf6 {[%emt 0:00:24]} 4. O-O {[%emt 0:01:03]} Nxe4 {[%emt 0:00:06]} 5. Re1 {[%emt 0:01:37]} Nd6 {[%emt 0:00:06]} 6. Nxe5 {[%emt 0:00:20]} Be7 {[%emt 0:00:09]} 7. Bf1 {[%emt 0:01:12]} Nxe5 {[%emt 0:00:28]} 8. Rxe5 {[%emt 0:00:15]} O-O {[%emt 0:00:05]} 9. d4 {[%emt 0:02:00]} Bf6 {[%emt 0:02:32]} 10. Re1 {[%emt 0:01:22]} Nf5 {[%emt 0:03:48]} 11. c3 {[%emt 0:02:42]} d5 {[%emt 0:00:56]} 12. Bf4 {[%emt 0:06:04]} c6 {[%emt 0:02:35]} 13. Bd3 {[%emt 0:05:42]} Nh4 {[%emt 0:07:47]} 14. Nd2 {[%emt 0:04:52]} Bf5 {[%emt 0:12:58]} 15. Qc2 {[%emt 0:14:05]} Bxd3 {[%emt 0:01:48]} 16. Qxd3 {[%emt 0:00:21]} Qb6 {[%emt 0:00:10]} 17. Bd6 {[%emt 0:08:06]} Rfe8 {[%emt 0:01:20]} 18. Ba3 {[%emt 0:00:47]} a5 {[%emt 0:14:41]} 19. g3 {[%emt 0:07:12]} Ng6 {[%emt 0:00:09]} 20. Nf3 {[%emt 0:00:06]} Re6 {[%emt 0:03:17]} 21. Re2 {[%emt 0:05:20]} Nf8 {[%emt 0:19:35]} 22. Rae1 {[%emt 0:03:10]} Rxe2 {[%emt 0:00:31]} 23. Rxe2 {[%emt 0:00:31]} Ne6 {[%emt 0:00:06]} 24. Ne5 {[%emt 0:09:32]} Bxe5 {[%emt 0:08:19]} 25. Rxe5 {[%emt 0:00:40]} Re8 {[%emt 0:00:44]} 26. Qe2 {[%emt 0:03:40]} Qd8 {[%emt 0:00:48]} 27. Kg2 {[%emt 0:01:40]} Qd7 {[%emt 0:00:34]} 28. Re3 {[%emt 0:05:49]} f6 {[%emt 0:01:31]} 29. Bc5 {[%emt 0:01:59]} g6 {[%emt 0:01:31]} 30. Ba3 {[%emt 0:05:26]} Kf7 {[%emt 0:00:08]} 31. h4 {[%emt 0:02:03]} b6 {[%emt 0:03:50]} 32. h5 {[%emt 0:02:47]} c5 {[%emt 0:04:11]} 33. Qg4 {[%emt 0:01:14]} Qc8 {[%emt 0:03:18]} 34. hxg6+ {[%emt 0:02:42]} hxg6 {[%emt 0:00:05]} 35. Qh3 {[%emt 0:00:22]} Rh8 {[%emt 0:01:05]} 36. Qg4 {[%emt 0:00:26]} Rh5 {[%emt 0:04:22]} 37. b3 {[%emt 0:01:20]} Nf4+ {[%emt 0:01:24]} 38. Kf3 {[%emt 0:00:01]} Ne6 {[%emt 0:00:13]} 39. Kg2 {[%emt 0:00:24]} cxd4 {[%emt 0:00:59]} 40. cxd4 {[%emt 0:00:05]} Nf4+ {[%emt 0:01:08]} 41. Kf3 {[%emt 0:30:02]} Qxg4+ {[%emt 0:10:47]} 42. Kxg4 {[%emt 0:00:00]} Ne6 {[%emt 0:00:07]} 43. Rd3 {[%emt 0:00:00]} Rh2 {[%emt 0:05:02]} 44. Rd2 {[%emt 0:00:00]} Ke8 {[%emt 0:04:25]} 45. Kf3 {[%emt 0:00:00]} Ng5+ {[%emt 0:00:50]} 46. Ke3 {[%emt 0:00:00]} Kd7 {[%emt 0:01:00]} 47. Rc2 {[%emt 0:00:00]} Ne4 {[%emt 0:00:13]} 48. Kf3 {[%emt 0:00:00]} f5 {[%emt 0:02:28]} 49. Bc1 {[%emt 0:00:00]} g5 {[%emt 0:03:35]} 50. Be3 {[%emt 0:00:00]} b5 {[%emt 0:01:51]} 51. a4 {[%emt 0:00:00]} b4 {[%emt 0:00:17]} 52. Rc1 {[%emt 0:00:00]} Kd6 {[%emt 0:02:25]} 53. Rc8 {[%emt 0:00:00]} Rh1 {[%emt 0:01:57] Kxe4 Ke5+} 1/2-1/2

[Event "CZE-tht Extraliga 2018-19"]
[Site "Czech Republic"]
[Date "2019.04.20"]
[Round "10.3"]
[White "Polak, Tomas"]
[Black "Mroziak, Maciej"]
[Result "1-0"]
[ECO "E97"]
[WhiteElo "2528"]
[BlackElo "2375"]
[Annotator "ChessBase"]
[PlyCount "149"]
[EventDate "2018.11.03"]
[EventType "team-tourn"]
[EventCountry "CZE"]
[SourceTitle "playchess.com"]
[Source "ChessBase"]
[SourceQuality "1"]
[WhiteTeam "Brno"]
[BlackTeam "Cesky Tesin"]
[TimeControl "40/5400+30:1800+30"]

1. d4 {[%emt 0:00:00]} Nf6 {[%emt 0:00:00]} 2. c4 {[%emt 0:00:00]} g6 {[%emt 0:00:00]} 3. Nc3 {[%emt 0:00:09]} Bg7 {[%emt 0:00:31]} 4. e4 {[%emt 0:00:36]} d6 {[%emt 0:00:05]} 5. Nf3 {[%emt 0:00:08]} O-O {[%emt 0:00:06]} 6. Be2 {[%emt 0:00:08]} e5 {[%emt 0:00:06]} 7. O-O {[%emt 0:00:14]} Nc6 {[%emt 0:00:37]} 8. d5 {[%emt 0:00:17]} Ne7 {[%emt 0:00:18]} 9. b4 {[%emt 0:00:10]} Nh5 {[%emt 0:14:45]} 10. Re1 {[%emt 0:00:32]} Nf4 {[%emt 0:01:43]} 11. Bf1 {[%emt 0:00:52]} h6 {[%emt 0:01:36]} 12. c5 {[%emt 0:08:04]} g5 {[%emt 0:09:33]} 13. g3 {[%emt 0:06:27]} Nh3+ {[%emt 0:00:44]} 14. Bxh3 {[%emt 0:02:13]} Bxh3 {[%emt 0:00:06]} 15. Bxg5 {[%emt 0:00:10]} f5 {[%emt 0:27:23]} 16. cxd6 {[%emt 0:06:47]} cxd6 {[%emt 0:01:03]} 17. Bxe7 {[%emt 0:02:54]} Qxe7 {[%emt 0:00:06]} 18. Nh4 {[%emt 0:00:33]} f4 {[%emt 0:11:01]} 19. Qh5 {[%emt 0:09:00]} Qg5 {[%emt 0:10:22]} 20. Qxg5 {[%emt 0:09:35]} hxg5 {[%emt 0:00:05]} 21. Nf5 {[%emt 0:00:09]} Bxf5 {[%emt 0:01:46]} 22. exf5 {[%emt 0:00:06]} e4 {[%emt 0:01:03]} 23. Rac1 {[%emt 0:00:14]} Rxf5 {[%emt 0:07:40]} 24. Nxe4 {[%emt 0:02:04]} f3 {[%emt 0:01:29]} 25. Rcd1 {[%emt 0:16:30]} Rd8 {[%emt 0:05:26]} 26. g4 {[%emt 0:11:16]} Re5 {[%emt 0:02:27]} 27. Kf1 {[%emt 0:01:44]} Kh7 {[%emt 0:02:19]} 28. Rd3 {[%emt 0:02:22]} Kg6 {[%emt 0:00:46]} 29. Nd2 {[%emt 0:05:36]} Rxe1+ {[%emt 0:00:15]} 30. Kxe1 {[%emt 0:00:05]} Re8+ {[%emt 0:00:55]} 31. Kd1 {[%emt 0:00:45]} Be5 {[%emt 0:00:24]} 32. Nxf3 {[%emt 0:00:42]} Bf4 {[%emt 0:00:04]} 33. h4 {[%emt 0:07:28]} gxh4 {[%emt 0:00:29]} 34. Nxh4+ {[%emt 0:00:05]} Kg5 {[%emt 0:00:15]} 35. Ng2 {[%emt 0:00:11]} Re4 {[%emt 0:00:55]} 36. a3 {[%emt 0:00:49]} Rc4 {[%emt 0:00:05]} 37. Rh3 {[%emt 0:05:15]} Rc1+ {[%emt 0:01:18]} 38. Ke2 {[%emt 0:00:05]} Be5 {[%emt 0:00:26]} 39. Ne3 {[%emt 0:02:48]} Ra1 {[%emt 0:00:39]} 40. Rh7 {[%emt 0:01:44]} Rxa3 {[%emt 0:00:21]} 41. Rxb7 {[%emt 0:30:48]} Ra2+ {[%emt 0:09:39]} 42. Kf3 {[%emt 0:00:00]} a5 {[%emt 0:00:59]} 43. Nc4 {[%emt 0:00:00]} axb4 {[%emt 0:04:12]} 44. Rxb4 {[%emt 0:00:00]} Bc3 {[%emt 0:03:03]} 45. Rb8 {[%emt 0:00:00]} Bd4 {[%emt 0:00:50]} 46. Ne3 {[%emt 0:00:00]} Rd2 {[%emt 0:02:04]} 47. Rf8 {[%emt 0:00:00]} Be5 {[%emt 0:02:06]} 48. Rf5+ {[%emt 0:00:00]} Kg6 {[%emt 0:00:06]} 49. Nc4 {[%emt 0:00:00]} Rd3+ {[%emt 0:08:17]} 50. Ke2 {[%emt 0:00:00]} Rxd5 {[%emt 0:00:43]} 51. Nxe5+ {[%emt 0:00:00]} dxe5 {[%emt 0:00:09]} 52. f3 {[%emt 0:00:18]} Ra5 {[%emt 0:00:37]} 53. Ke3 {[%emt 0:00:11]} Ra3+ {[%emt 0:01:54]} 54. Ke4 {[%emt 0:00:08]} Ra4+ {[%emt 0:00:04]} 55. Kxe5 {[%emt 0:00:10]} Rb4 {[%emt 0:00:32]} 56. Rf4 {[%emt 0:02:56]} Rb5+ {[%emt 0:00:18]} 57. Ke4 {[%emt 0:00:10]} Rb4+ {[%emt 0:00:15]} 58. Ke3 {[%emt 0:00:06]} Rb5 {[%emt 0:00:24]} 59. Kf2 {[%emt 0:00:15]} Rb2+ {[%emt 0:00:19]} 60. Kg3 {[%emt 0:00:05]} Rb3 {[%emt 0:00:04]} 61. Ra4 {[%emt 0:00:24]} Kg5 {[%emt 0:00:28]} 62. Ra5+ {[%emt 0:00:15]} Kg6 {[%emt 0:00:18]} 63. Re5 {[%emt 0:01:42]} Kf6 {[%emt 0:00:14]} 64. Rd5 {[%emt 0:00:08]} Kg6 {[%emt 0:00:34]} 65. Kf4 {[%emt 0:00:17]} Rb4+ {[%emt 0:00:24]} 66. Ke3 {[%emt 0:00:08]} Rb3+ {[%emt 0:01:37]} 67. Ke4 {[%emt 0:00:16]} Rb4+ {[%emt 0:00:08]} 68. Rd4 {[%emt 0:00:10]} Rb1 {[%emt 0:01:05]} 69. f4 {[%emt 0:00:17]} Re1+ {[%emt 0:00:26]} 70. Kf3 {[%emt 0:00:07]} Rf1+ {[%emt 0:00:36]} 71. Kg2 {[%emt 0:00:10]} Ra1 {[%emt 0:00:10]} 72. Rd6+ {[%emt 0:00:05]} Kg7 {[%emt 0:00:06]} 73. Kg3 {[%emt 0:00:08]} Rh1 {[%emt 0:00:10]} 74. f5 {[%emt 0:00:48]} Ra1 {[%emt 0:00:11]} 75. Kf4 {[%emt 0:00:11]} 1-0

[Event "CZE-tht Extraliga 2018-19"]
[Site "Czech Republic"]
[Date "2019.04.20"]
[Round "10.3"]
[White "Ponizil, Cyril"]
[Black "Antoniewski, Rafal"]
[Result "1/2-1/2"]
[ECO "B78"]
[WhiteElo "2501"]
[BlackElo "2500"]
[Annotator "ChessBase"]
[PlyCount "123"]
[EventDate "2018.11.03"]
[EventType "team-tourn"]
[EventCountry "CZE"]
[SourceTitle "playchess.com"]
[Source "ChessBase"]
[SourceQuality "1"]
[WhiteTeam "Duras"]
[BlackTeam "Beskydska"]
[TimeControl "40/5400+30:1800+30"]

1. e4 {[%emt 0:00:00]} c5 {[%emt 0:00:00]} 2. Nf3 {[%emt 0:00:00]} d6 {[%emt 0:00:00]} 3. d4 {[%emt 0:00:00]} cxd4 {[%emt 0:00:09]} 4. Nxd4 {[%emt 0:00:00]} Nf6 {[%emt 0:00:16]} 5. Nc3 {[%emt 0:00:00]} g6 {[%emt 0:00:23]} 6. Be3 {[%emt 0:00:30]} Bg7 {[%emt 0:00:22]} 7. f3 {[%emt 0:00:04]} Nc6 {[%emt 0:00:48]} 8. Qd2 {[%emt 0:01:11]} O-O {[%emt 0:00:08]} 9. Bc4 {[%emt 0:00:03]} Bd7 {[%emt 0:00:20]} 10. O-O-O {[%emt 0:00:05]} Rb8 {[%emt 0:00:24]} 11. Kb1 {[%emt 0:01:38]} Na5 {[%emt 0:10:38]} 12. Bb3 {[%emt 0:02:25]} b5 {[%emt 0:00:07]} 13. Bh6 {[%emt 0:00:55]} Bxh6 {[%emt 0:18:16]} 14. Qxh6 {[%emt 0:00:06]} e5 {[%emt 0:03:31]} 15. Nde2 {[%emt 0:04:13]} b4 {[%emt 0:01:21]} 16. Nd5 {[%emt 0:01:26]} Nxb3 {[%emt 0:00:53]} 17. Nxf6+ {[%emt 0:01:46]} Qxf6 {[%emt 0:00:04]} 18. axb3 {[%emt 0:00:04]} Rb6 {[%emt 0:00:24]} 19. Ng3 {[%emt 0:03:14]} Qe7 {[%emt 0:03:13]} 20. Nf1 {[%emt 0:08:42]} Be6 {[%emt 0:02:02]} 21. g4 {[%emt 0:03:18]} Rc8 {[%emt 0:01:55]} 22. Ne3 {[%emt 0:02:22]} Rc5 {[%emt 0:06:50]} 23. Rd3 {[%emt 0:08:53]} Ra6 {[%emt 0:06:22]} 24. Rc1 {[%emt 0:11:18]} Qc7 {[%emt 0:01:43]} 25. c4 {[%emt 0:02:28]} bxc3 {[%emt 0:00:37]} 26. Rcxc3 {[%emt 0:00:03]} Rxc3 {[%emt 0:13:03]} 27. Rxc3 {[%emt 0:00:03]} Rc6 {[%emt 0:00:05]} 28. Kc2 {[%emt 0:05:55]} Qb6 {[%emt 0:03:53]} 29. Nc4 {[%emt 0:00:29]} Qa6 {[%emt 0:03:32]} 30. Kd3 {[%emt 0:09:03]} Qb5 {[%emt 0:08:42]} 31. Qc1 {[%emt 0:06:58]} d5 {[%emt 0:03:27]} 32. exd5 {[%emt 0:00:03]} Bxd5 {[%emt 0:02:50]} 33. Ke3 {[%emt 0:05:01]} e4 {[%emt 0:06:06]} 34. Kf2 {[%emt 0:03:11]} exf3 {[%emt 0:01:50]} 35. Qd2 {[%emt 0:04:54]} Bxc4 {[%emt 0:01:07]} 36. Qd8+ {[%emt 0:01:24]} Kg7 {[%emt 0:00:01]} 37. Qd4+ {[%emt 0:00:16]} Kg8 {[%emt 0:02:13]} 38. Rxc4 {[%emt 0:01:23]} Qb6 {[%emt 0:00:02]} 39. Qxb6 {[%emt 0:00:46]} Rxb6 {[%emt 0:00:02]} 40. b4 {[%emt 0:00:42]} Rf6 {[%emt 0:01:35]} 41. b5 {[%emt 0:30:25]} h6 {[%emt 0:30:43]} 42. Ra4 {[%emt 0:00:44]} Rb6 {[%emt 0:00:08]} 43. Ra5 {[%emt 0:00:07]} Rd6 {[%emt 0:00:00]} 44. Kxf3 {[%emt 0:00:00]} Rd2 {[%emt 0:00:00]} 45. b4 {[%emt 0:00:00]} Rd4 {[%emt 0:00:00]} 46. Rxa7 {[%emt 0:00:00]} Rxb4 {[%emt 0:00:00]} 47. Rb7 {[%emt 0:00:00]} g5 {[%emt 0:00:00]} 48. h3 {[%emt 0:00:00]} Kg7 {[%emt 0:00:00]} 49. b6 {[%emt 0:00:00]} Rb3+ {[%emt 0:00:00]} 50. Ke4 {[%emt 0:00:00]} Rxh3 {[%emt 0:00:00]} 51. Rd7 {[%emt 0:00:00]} Rg3 {[%emt 0:00:00]} 52. Kf5 {[%emt 0:00:00]} Rb3 {[%emt 0:00:00]} 53. Rd6 {[%emt 0:00:00]} Rb4 {[%emt 0:00:00]} 54. Ke5 {[%emt 0:00:00]} Rxg4 {[%emt 0:00:00]} 55. Rd4 {[%emt 0:00:00]} Rg1 {[%emt 0:00:00]} 56. Rb4 {[%emt 0:00:00]} Re1+ {[%emt 0:00:00]} 57. Kd6 {[%emt 0:00:00]} Rd1+ {[%emt 0:00:00]} 58. Kc7 {[%emt 0:00:00]} Rc1+ {[%emt 0:00:00]} 59. Kd7 {[%emt 0:00:00]} Rd1+ {[%emt 0:00:10]} 60. Kc7 {[%emt 0:00:00]} Rc1+ {[%emt 0:00:03]} 61. Kd7 {[%emt 0:00:00]} Rd1+ {[%emt 0:00:05]} 62. Kc7 {[%emt 0:00:00]} 1/2-1/2

[Event "CZE-tht Extraliga 2018-19"]
[Site "Czech Republic"]
[Date "2019.04.20"]
[Round "10.3"]
[White "Bobras, Piotr"]
[Black "Landa, Konstantin"]
[Result "1/2-1/2"]
[ECO "B19"]
[WhiteElo "2484"]
[BlackElo "2620"]
[Annotator "RC"]
[PlyCount "40"]
[EventDate "2018.11.03"]
[EventType "team-tourn"]
[EventCountry "CZE"]
[SourceTitle "playchess.com"]
[Source "ChessBase"]
[SourceQuality "1"]
[WhiteTeam "Poruba"]
[BlackTeam "Lysa nad Labem"]
[TimeControl "40/5400+30:1800+30"]

1. e4 {[%emt 0:00:00]} c6 {[%emt 0:00:40]} 2. d4 {[%emt 0:00:00]} d5 {[%emt 0:00:07]} 3. Nc3 {[%emt 0:00:00]} dxe4 {[%emt 0:00:11]} 4. Nxe4 {[%emt 0:00:00]} Bf5 {[%emt 0:00:07]} 5. Ng3 {[%emt 0:00:03]} Bg6 {[%emt 0:00:04]} 6. h4 {[%emt 0:00:12]} h6 {[%emt 0:00:10]} 7. Nf3 {[%emt 0:00:06]} Nd7 {[%emt 0:00:15]} 8. h5 {[%emt 0:00:13]} Bh7 {[%emt 0:00:08]} 9. Bd3 {[%emt 0:00:03]} Bxd3 {[%emt 0:00:06]} 10. Qxd3 {[%emt 0:00:04]} e6 {[%emt 0:00:08]} 11. Bd2 {[%emt 0:00:08]} Ngf6 {[%emt 0:00:21]} 12. O-O-O {[%emt 0:00:21]} Be7 {[%emt 0:00:08]} 13. Kb1 {[%emt 0:00:36]} Qb6 {[%emt 0:01:03]} 14. Nh4 {[%emt 0:10:15]} Bb4 {[%emt 0:11:48]} 15. c3 {[%emt 0:15:00]} Bd6 {[%emt 0:02:57]} 16. c4 {[%emt 0:06:14]} O-O-O {[%emt 0:11:28]} 17. c5 {[%emt 0:11:37]} Nxc5 {[%emt 0:02:05]} 18. dxc5 {[%emt 0:00:07]} Bxc5 {[%emt 0:00:03]} 19. Qf3 {[%emt 0:11:05]} Bxf2 {[%emt 0:04:08]} 20. Bc3 {[%emt 0:03:38]} Bd4 {[%emt 0:06:25]} 1/2-1/2